[Event "Reykjavik Open 2025"]
[Site "Reykjavik"]
[Date "2025.04.09"]
[Round "1.11"]
[White "Maze, Sebastien"]
[Black "Maciol, Ryszard"]
[Result "1-0"]
[Annotator "ChessBase"]
[ECO "D03"]
[WhiteElo "2557"]
[BlackElo "2135"]
[PlyCount "67"]
[EventDate "2025.04.09"]
[EventType "swiss"]
[EventCountry "ISL"]
[SourceTitle "playchess.com"]
[Source "ChessBase"]
[SourceQuality "1"]
[TimeControl "40/5400+30:1800+30"]

1. d4 {[%emt 0:00:05]} Nf6 {[%emt 0:00:12]} 2. Nf3 {[%emt 0:00:04]} e6 {[%emt 0:02:48]} 3. Bg5 {[%emt 0:00:22]} d5 {[%emt 0:01:20]} 4. Nbd2 {[%emt 0:00:26]} Be7 {[%emt 0:00:42]} 5. e3 {[%emt 0:00:26]} b6 {[%emt 0:03:20]} 6. c3 {[%emt 0:01:55]} Bb7 {[%emt 0:03:26]} 7. Bb5+ {[%emt 0:01:47]} Nfd7 {[%emt 0:05:30]} 8. Bf4 {[%emt 0:01:34]} O-O {[%emt 0:01:43]} 9. h4 {[%emt 0:01:21]} Ba6 {[%emt 0:08:02]} 10. Bxa6 {[%emt 0:07:27]} Nxa6 {[%emt 0:03:20]} 11. Qc2 {[%emt 0:00:02]} Re8 {[%emt 0:02:06]} 12. h5 {[%emt 0:08:09]} c5 {[%emt 0:03:16]} 13. g4 {[%emt 0:00:00]} cxd4 {[%emt 0:06:23]} 14. exd4 {[%emt 0:00:00]} f6 {[%emt 0:04:40]} 15. Kf1 {[%emt 0:05:05]} Nf8 {[%emt 0:02:30]} 16. Re1 {[%emt 0:03:08]} Nc7 {[%emt 0:10:33]} 17. Nb3 {[%emt 0:06:20]} a5 {[%emt 0:11:51]} 18. Nc1 {[%emt 0:00:20]} Nb5 {[%emt 0:02:41]} 19. Nd3 {[%emt 0:01:28]} Rc8 {[%emt 0:02:33]} 20. Rg1 {[%emt 0:28:14]} Bd6 {[%emt 0:06:13]} 21. g5 {[%emt 0:03:28]} Bxf4 {[%emt 0:00:47]} 22. Nxf4 {[%emt 0:00:03]} fxg5 {[%emt 0:00:17]} 23. h6 {[%emt 0:05:27]} gxh6 {[%emt 0:06:26]} 24. Re5 {[%emt 0:00:05]} Rc7 {[%emt 0:00:19]} 25. Nxg5 {[%emt 0:00:33]} Rg7 {[%emt 0:02:12]} 26. Ngxe6 {[%emt 0:06:45]} Nxe6 {[%emt 0:00:35]} 27. Nxe6 {[%emt 0:09:26]} Rxg1+ {[%emt 0:00:17]} 28. Kxg1 {[%emt 0:00:01]} Qf6 {[%emt 0:00:44]} 29. Qe2 {[%emt 0:00:10]} Nd6 {[%emt 0:01:26]} 30. Nf4 {[%emt 0:01:44]} Rf8 {[%emt 0:02:17]} 31. Nxd5 {[%emt 0:01:22]} Qg7+ {[%emt 0:03:27]} 32. Kf1 {[%emt 0:03:24]} Kh8 {[%emt 0:02:11]} 33. Re7 {[%emt 0:00:57]} Nf7 {[%emt 0:00:53]} 34. Re8 {[%emt 0:00:22]} 1-0

[Event "Reykjavik Open 2025"]
[Site "Reykjavik"]
[Date "2025.04.09"]
[Round "1.12"]
[White "Arruebarrena Rodriguez, Rafael"]
[Black "Adhiban, B.."]
[Result "0-1"]
[Annotator "TA"]
[ECO "B60"]
[WhiteElo "2129"]
[BlackElo "2554"]
[PlyCount "102"]
[EventDate "2025.04.09"]
[EventType "swiss"]
[EventCountry "ISL"]
[SourceTitle "playchess.com"]
[Source "ChessBase"]
[SourceQuality "1"]
[TimeControl "40/5400+30:1800+30"]

{[%evp 14,102,39,32,39,37,41,33,39,28,48,27,54,31,33,12,0,12,20,0,10,0,0,16,9,6,43,35,42,0,40,37,52,28,37,31,52,21,54,50,61,35,89,61,73,81,173,8,8,16,10,8,8,0,0,0,0,-35,-27,-23,-25,-152,-196,-225,-247,-243,-243,-240,-237,-247,-242,-302,-258,-261,-233,-339,-331,-316,-312,-1060,-1061,-1040,-1027,-958,-918,-29981,-29982,-29980,-12431,-2588,-2140]} 1. e4 {[%emt 0:00:16]} c5 {[%emt 0:00:06]} 2. Nf3 {[%emt 0:00:06][%cal Bg1f3,Bf3d4,Bd4f5][%mdl 32]} d6 {[%emt 0:00:05]} 3. d4 {[%emt 0:00:08]} cxd4 {[%emt 0:00:04]} 4. Nxd4 {[%emt 0:00:05]} Nf6 {[%emt 0:00:03]} 5. Nc3 {[%emt 0:00:06]} Nc6 {[%emt 0:00:03]} 6. Bg5 {[%emt 0:00:25]} Bd7 {[%emt 0:00:16]} 7. Bxf6 {[%emt 0:04:24]} gxf6 {[%emt 0:00:05]} 8. Nf5 {[%emt 0:03:46]} Qa5 {[%emt 0:08:15] B60: Sicilian: Richter-Rauzer: Unusual Black 6th moves and 6...Bd7 without 7 Qd2.} 9. Bb5 {[%emt 0:12:08]} a6 {[%emt 0:08:23]} 10. Bxc6 {[%emt 0:00:32]} bxc6 {[%emt 0:06:10] White is slightly better.} 11. Qd3 {[%emt 0:02:37]} d5 $5 {[%emt 0:08:41][%mdl 4] A promising side line.} 12. exd5 {[%emt 0:08:49]} cxd5 {[%emt 0:00:58]} 13. O-O {[%emt 0:01:49]} e6 {[%emt 0:02:12]} 14. Qd4 {[%emt 0:07:12]} Rg8 $1 {[%emt 0:06:26]} (14... exf5 $2 15. Rfe1+ (15. Nxd5 Be7 $11) (15. Qxf6 d4 $18) 15... Be6 16. Qxf6 $18) 15. Qxf6 {[%emt 0:04:13]} Qd8 $146 {[%emt 0:10:04]} (15... Rg6 16. Qe5 f6 17. Qe2 Kf7 18. Ng3 Bb4 19. Rfe1 Rc8 20. Rad1 Qb6 21. Qh5 Kg7 {½-½ Sharafiev,A (2462)-Gutenev,A (2328) Moscow op-C 2011 (5)}) 16. Qxd8+ {[%emt 0:13:51]} (16. Nxd5 $2 Bc6 17. Qxd8+ Kxd8 $19) 16... Kxd8 {[%emt 0:03:07][%cal Be8d8,Bd8c7,Bc7d6,Bd6e7][%mdl 32]} 17. Nd4 {[%emt 0:01:55]} Rb8 {[%emt 0:00:03] Black sacrificed a pawn} 18. Rab1 {[%emt 0:02:27]} Kc7 {[%emt 0:02:44]} 19. Rfd1 {[%emt 0:03:58]} Bg7 {[%emt 0:01:45]} 20. Nce2 {[%emt 0:03:30]} Rgc8 {[%emt 0:00:38]} 21. c3 {[%emt 0:01:11]} Kd6 {[%emt 0:01:22]} 22. f4 {[%emt 0:03:51]} h5 {[%emt 0:02:44]} 23. Kf2 {[%emt 0:02:07]} a5 {[%emt 0:02:37]} 24. b3 {[%emt 0:02:31]} Ke7 {[%emt 0:00:38]} 25. Rbc1 {[%emt 0:00:49]} Rc5 {[%emt 0:01:17]} 26. Rd3 {[%emt 0:06:35][%cal Bd1d3,Bd3g3,Bg3g5][%mdl 32]} f6 {[%emt 0:06:47]} 27. Rg3 {[%emt 0:07:12]} Bh8 {[%emt 0:02:21]} (27... Kf7 $14) 28. Re1 {[%emt 0:01:04]} e5 {[%emt 0:01:22]} 29. Nf3 {[%emt 0:03:26]} Be6 {[%emt 0:12:08]} (29... e4 $16) 30. fxe5 $2 {[%emt 0:00:58]} ({White should try} 30. Ned4 $1 $18 {[%cal Rf4e5]} Rf8 (30... exd4 31. Nxd4 h4 32. Rxe6+ Kf7 33. Rge3 $16) 31. Nxe6 Kxe6 32. Re3) 30... fxe5 $11 {[%emt 0:00:02]} 31. Rg5 {[%emt 0:00:34][%csl LRe5,LRh5]} Rf8 {[%emt 0:01:35]} 32. Kg1 {[%emt 0:00:37]} (32. Rxh5 e4 33. Rh7+ Kd6 34. Rxh8 (34. b4 $2 axb4 35. cxb4 Rc4 $19) 34... Rxh8 $14) 32... e4 {[%emt 0:01:09][%csl LRc3,LRf3]} 33. Nh4 {[%emt 0:01:50] and Ng6+ should not be overlooked} Kd6 {[%emt 0:00:34]} 34. Ng6 {[%emt 0:00:46]} Rg8 {[%emt 0:00:53]} 35. Rxh5 {[%emt 0:00:44]} (35. Nd4 Bf6 36. Nxe6 (36. Rg3 Bg4 $17) 36... Bxg5 (36... Rxc3 37. Rxh5 Rxg6 38. Nf4 $11) 37. Nxc5 Rxg6 $15 (37... Kxc5 38. Ne5 $19)) 35... Bxc3 {[%emt 0:00:40]} 36. Nxc3 {[%emt 0:00:33]} Rxg6 {[%emt 0:01:09]} 37. Ne2 {[%emt 0:01:06] Black converts the advantage convincingly.} (37. Rc1 $11 Kc6 38. h3) 37... Bg4 $1 $17 {[%emt 0:02:24]} 38. Rh4 {[%emt 0:00:37]} Bxe2 {[%emt 0:00:54]} 39. Rxe2 $19 {[%emt 0:00:06][%mdl 4096] Endgame KRR-KRR. White is a pawn up.} Rc1+ $1 {[%emt 0:06:07]} 40. Kf2 {[%emt 0:00:02]} Rf6+ $1 {[%emt 0:00:35][%mdl 1024] Black has strong compensation.} 41. Ke3 {[%emt 0:03:14] [#]} Kc5 $1 {[%emt 0:03:21]} 42. Rh8 {[%emt 0:01:38]} Rc3+ {[%emt 0:02:09]} 43. Kd2 {[%emt 0:00:08] [#]} Rd3+ {[%emt 0:00:07]} 44. Kc2 {[%emt 0:00:18]} (44. Ke1 {is a better defense.} Kd4 45. b4) 44... Kd4 {[%emt 0:00:28]} 45. Rh4 {[%emt 0:15:31]} Rf1 {[%emt 0:01:07]} 46. g3 $2 {[%emt 0:00:51]} (46. Kb2) 46... Rc3+ {[%emt 0:01:26]} 47. Kb2 {[%emt 0:00:49]} Kd3 {[%emt 0:00:32]} 48. Rg2 {[%emt 0:00:21]} e3 {[%emt 0:00:42] Strongly threatening ...Rf2+.} 49. Rf4 {[%emt 0:00:10]} Rxf4 {[%emt 0:00:29]} ({Weaker is} 49... e2 50. Rxe2 Rxf4 51. gxf4 $14) 50. gxf4 {[%emt 0:00:05]} d4 {[%emt 0:00:12] ( -> ...e2)} 51. f5 {[%emt 0:00:36]} e2 {[%emt 0:00:34] Weighted Error Value: White=0.49/Black=0.07 (flawless)   Missed win:     	White=1     	---        Mistake:       	White=3     	Black=2      Inaccurate:     	White=5     	Black=4      OK:         	White=11    	Black=14     Best:        	White=3     	Black=4      Strong:       	---       	Black=5} 0-1

[Event "Reykjavik Open 2025"]
[Site "Reykjavik"]
[Date "2025.04.09"]
[Round "1.13"]
[White "Friedel, Joshua"]
[Black "Zhou, Guijue"]
[Result "1/2-1/2"]
[Annotator "ChessBase"]
[ECO "E01"]
[WhiteElo "2552"]
[BlackElo "2127"]
[PlyCount "81"]
[EventDate "2025.04.09"]
[EventType "swiss"]
[EventCountry "ISL"]
[SourceTitle "playchess.com"]
[Source "ChessBase"]
[SourceQuality "1"]
[TimeControl "40/5400+30:1800+30"]

1. d4 {[%emt 0:00:05]} d5 {[%emt 0:00:07]} 2. c4 {[%emt 0:00:16]} c6 {[%emt 0:00:04]} 3. Nf3 {[%emt 0:00:25]} Nf6 {[%emt 0:00:12]} 4. Nc3 {[%emt 0:00:33]} e6 {[%emt 0:00:06]} 5. g3 {[%emt 0:02:47]} dxc4 {[%emt 0:00:13]} 6. Ne5 {[%emt 0:01:08]} c5 {[%emt 0:10:24]} 7. dxc5 {[%emt 0:09:17]} Qxd1+ {[%emt 0:00:23]} 8. Nxd1 {[%emt 0:00:09]} Bxc5 {[%emt 0:00:15]} 9. Ne3 {[%emt 0:06:27]} Nbd7 {[%emt 0:04:13]} 10. N3xc4 {[%emt 0:02:48]} Ne4 {[%emt 0:04:53]} 11. Nd3 {[%emt 0:04:37]} Be7 {[%emt 0:00:53]} 12. Bg2 {[%emt 0:00:22]} Ndf6 {[%emt 0:00:22]} 13. Bf4 {[%emt 0:11:28]} O-O {[%emt 0:01:15]} 14. Rc1 {[%emt 0:00:55]} Rd8 {[%emt 0:13:33]} 15. O-O {[%emt 0:04:49]} Nd6 {[%emt 0:05:58]} 16. Nxd6 {[%emt 0:09:34]} Bxd6 {[%emt 0:00:09]} 17. Bxd6 {[%emt 0:00:06]} Rxd6 {[%emt 0:00:04]} 18. Ne5 {[%emt 0:03:50]} Ne8 {[%emt 0:13:38]} 19. Rc3 {[%emt 0:10:50]} f6 {[%emt 0:02:16]} 20. Nc4 {[%emt 0:00:50]} Rd7 {[%emt 0:08:19]} 21. Ra3 {[%emt 0:04:48]} Rb8 {[%emt 0:01:23]} 22. Rxa7 {[%emt 0:00:31]} b5 {[%emt 0:00:14]} 23. Rxd7 {[%emt 0:00:30]} Bxd7 {[%emt 0:00:04]} 24. Na5 {[%emt 0:00:53]} Rc8 {[%emt 0:01:03]} 25. Rd1 {[%emt 0:00:16]} Rc7 {[%emt 0:00:16]} 26. b4 {[%emt 0:03:11]} Kf8 {[%emt 0:00:56]} 27. Nb3 {[%emt 0:01:54]} Ke7 {[%emt 0:01:20]} 28. Nc5 {[%emt 0:00:32]} Nd6 {[%emt 0:00:10]} 29. f4 {[%emt 0:02:36]} Be8 {[%emt 0:00:38]} 30. Rd3 {[%emt 0:04:35]} Ra7 {[%emt 0:06:56]} 31. Bh3 {[%emt 0:09:07]} f5 {[%emt 0:03:00]} 32. a3 {[%emt 0:01:38]} Nc4 {[%emt 0:01:19]} 33. Bg2 {[%emt 0:01:44]} Rxa3 {[%emt 0:00:46]} 34. Rxa3 {[%emt 0:00:40]} Nxa3 {[%emt 0:00:04]} 35. Kf2 {[%emt 0:00:41]} Nc2 {[%emt 0:01:11]} 36. Nd3 {[%emt 0:00:06]} Kd6 {[%emt 0:00:50]} 37. e4 {[%emt 0:00:46]} Bc6 {[%emt 0:05:29]} 38. e5+ {[%emt 0:00:24]} Kc7 {[%emt 0:00:05]} 39. Nc5 {[%emt 0:00:48]} Bd7 {[%emt 0:01:16]} 40. Bf1 {[%emt 0:02:40]} Nxb4 {[%emt 0:01:07]} 41. Nxd7 {[%emt 0:30:26]} 1/2-1/2

[Event "Reykjavik Open 2025"]
[Site "Reykjavik"]
[Date "2025.04.09"]
[Round "1.14"]
[White "Elier, Ali"]
[Black "Amar, Elham"]
[Result "0-1"]
[Annotator "ChessBase"]
[ECO "B21"]
[WhiteElo "2125"]
[BlackElo "2546"]
[PlyCount "64"]
[EventDate "2025.04.09"]
[EventType "swiss"]
[EventCountry "ISL"]
[SourceTitle "playchess.com"]
[Source "ChessBase"]
[SourceQuality "1"]
[TimeControl "40/5400+30:1800+30"]

1. e4 {[%emt 0:00:03]} c5 {[%emt 0:00:17]} 2. d4 {[%emt 0:00:07]} cxd4 {[%emt 0:00:11]} 3. c3 {[%emt 0:00:04]} dxc3 {[%emt 0:00:35]} 4. Nxc3 {[%emt 0:00:07]} Nc6 {[%emt 0:00:20]} 5. Nf3 {[%emt 0:00:05]} e6 {[%emt 0:00:32]} 6. Bc4 {[%emt 0:00:09]} a6 {[%emt 0:00:20]} 7. O-O {[%emt 0:00:11]} Nge7 {[%emt 0:02:23]} 8. Bg5 {[%emt 0:00:28]} h6 {[%emt 0:00:23]} 9. Be3 {[%emt 0:00:06]} d6 {[%emt 0:04:20]} 10. Qe2 {[%emt 0:06:00]} Ng6 {[%emt 0:00:53]} 11. Nd2 {[%emt 0:01:34]} Be7 {[%emt 0:02:32]} 12. f4 {[%emt 0:00:30]} O-O {[%emt 0:01:52]} 13. Rad1 {[%emt 0:01:03]} b5 {[%emt 0:02:11]} 14. Bb3 {[%emt 0:00:38]} Bd7 {[%emt 0:14:16]} 15. Qh5 {[%emt 0:03:47]} Na5 {[%emt 0:09:37]} 16. Bc2 {[%emt 0:18:43]} b4 {[%emt 0:01:21]} 17. Ne2 {[%emt 0:01:19]} Bb5 {[%emt 0:01:04]} 18. Rf2 {[%emt 0:02:22]} Rc8 {[%emt 0:01:43]} 19. Bb1 {[%emt 0:01:54]} Bf6 {[%emt 0:03:40]} 20. f5 {[%emt 0:03:54]} Ne5 {[%emt 0:03:45]} 21. Nd4 {[%emt 0:00:41]} Bd7 {[%emt 0:01:40]} 22. N2f3 {[%emt 0:04:22]} Nac4 {[%emt 0:03:52]} 23. Bc1 {[%emt 0:04:54]} Nxf3+ {[%emt 0:03:38]} 24. Nxf3 {[%emt 0:00:25]} exf5 {[%emt 0:01:16]} 25. exf5 {[%emt 0:00:43]} Re8 {[%emt 0:06:30]} 26. b3 {[%emt 0:10:20]} Ne3 {[%emt 0:00:39]} 27. Bxe3 {[%emt 0:00:57]} Rxe3 {[%emt 0:00:04]} 28. Rfd2 {[%emt 0:00:46]} Qb6 {[%emt 0:03:27]} 29. Kh1 {[%emt 0:00:54]} Bb5 {[%emt 0:01:40]} 30. Ng1 {[%emt 0:08:25]} Rd8 {[%emt 0:01:53]} 31. Qg4 {[%emt 0:01:38]} d5 {[%emt 0:01:51]} 32. Nh3 {[%emt 0:01:49]} Rde8 {[%emt 0:01:16]} 0-1

[Event "Reykjavik Open 2025"]
[Site "Reykjavik"]
[Date "2025.04.09"]
[Round "1.15"]
[White "Sokolovsky, Yahli"]
[Black "Balje, Jan"]
[Result "1/2-1/2"]
[Annotator "ChessBase"]
[ECO "B19"]
[WhiteElo "2546"]
[BlackElo "2125"]
[PlyCount "73"]
[EventDate "2025.04.09"]
[EventType "swiss"]
[EventCountry "ISL"]
[SourceTitle "playchess.com"]
[Source "ChessBase"]
[SourceQuality "1"]
[TimeControl "40/5400+30:1800+30"]

1. e4 {[%emt 0:00:04]} c6 {[%emt 0:00:08]} 2. d4 {[%emt 0:00:03]} d5 {[%emt 0:00:06]} 3. Nd2 {[%emt 0:00:04]} dxe4 {[%emt 0:00:24]} 4. Nxe4 {[%emt 0:00:05]} Bf5 {[%emt 0:00:18]} 5. Ng3 {[%emt 0:00:06]} Bg6 {[%emt 0:00:07]} 6. h4 {[%emt 0:00:04]} h6 {[%emt 0:00:13]} 7. Nf3 {[%emt 0:00:04]} e6 {[%emt 0:00:45]} 8. Ne5 {[%emt 0:00:05]} Bh7 {[%emt 0:00:26]} 9. Bd3 {[%emt 0:00:05]} Bxd3 {[%emt 0:00:34]} 10. Qxd3 {[%emt 0:00:06]} Nd7 {[%emt 0:00:54]} 11. Qe2 {[%emt 0:00:09]} Ngf6 {[%emt 0:01:34]} 12. Bd2 {[%emt 0:01:15]} c5 {[%emt 0:03:15]} 13. Nxd7 {[%emt 0:01:33]} Qxd7 {[%emt 0:01:07]} 14. dxc5 {[%emt 0:00:06]} Bxc5 {[%emt 0:00:24]} 15. O-O-O {[%emt 0:00:06]} Qc6 {[%emt 0:02:53]} 16. Bc3 {[%emt 0:00:54]} Be7 {[%emt 0:02:23]} 17. Nh5 {[%emt 0:00:21]} Nxh5 {[%emt 0:02:48]} 18. Qxh5 {[%emt 0:00:05]} Rc8 {[%emt 0:02:50]} 19. Rh3 {[%emt 0:02:13]} O-O {[%emt 0:06:20]} 20. Rd2 {[%emt 0:16:34]} Qa6 {[%emt 0:07:13]} 21. Qg4 {[%emt 0:05:18]} Rxc3 {[%emt 0:05:53]} 22. Rxc3 {[%emt 0:00:20]} Qxa2 {[%emt 0:01:07]} 23. Rd7 {[%emt 0:09:27]} Bf6 {[%emt 0:06:55]} 24. Rb3 {[%emt 0:00:16]} Qa1+ {[%emt 0:04:58]} 25. Kd2 {[%emt 0:00:01]} Bxb2 {[%emt 0:00:12]} 26. Qb4 {[%emt 0:07:24]} a5 {[%emt 0:06:51]} 27. Qc5 {[%emt 0:01:45]} b6 {[%emt 0:07:38]} 28. Rxb6 {[%emt 0:05:34]} Ba3 {[%emt 0:00:54]} 29. Qc6 {[%emt 0:05:25]} Qf6 {[%emt 0:05:58]} 30. Qf3 {[%emt 0:04:56]} Bb4+ {[%emt 0:07:56]} 31. Ke2 {[%emt 0:02:30]} Qe5+ {[%emt 0:07:13]} 32. Qe3 {[%emt 0:02:03]} Qh5+ {[%emt 0:00:31]} 33. Kf1 {[%emt 0:03:49]} Qxh4 {[%emt 0:03:31]} 34. Kg1 {[%emt 0:18:46]} Qc4 {[%emt 0:02:04]} 35. Qc1 {[%emt 0:01:36]} Bc5 {[%emt 0:01:23]} 36. Rb3 {[%emt 0:00:22]} a4 {[%emt 0:01:53]} 37. Rg3 {[%emt 0:11:22]} 1/2-1/2

[Event "Reykjavik Open 2025"]
[Site "Reykjavik"]
[Date "2025.04.09"]
[Round "1.16"]
[White "Le Pen, Steven"]
[Black "Stefansson, Vignir Vatnar"]
[Result "0-1"]
[Annotator "ChessBase"]
[ECO "B42"]
[WhiteElo "2125"]
[BlackElo "2536"]
[PlyCount "68"]
[EventDate "2025.04.09"]
[EventType "swiss"]
[EventCountry "ISL"]
[SourceTitle "playchess.com"]
[Source "ChessBase"]
[SourceQuality "1"]
[TimeControl "40/5400+30:1800+30"]

1. e4 {[%emt 0:30:11]} c5 {[%emt 0:00:12]} 2. Nf3 {[%emt 0:00:17]} e6 {[%emt 0:00:05]} 3. d4 {[%emt 0:00:29]} cxd4 {[%emt 0:00:06]} 4. Nxd4 {[%emt 0:00:03]} a6 {[%emt 0:00:09]} 5. Bd3 {[%emt 0:00:47]} g6 {[%emt 0:00:06]} 6. O-O {[%emt 0:01:40]} Bg7 {[%emt 0:00:06]} 7. Be3 {[%emt 0:03:54]} Ne7 {[%emt 0:00:25]} 8. c4 {[%emt 0:02:16]} O-O {[%emt 0:03:24]} 9. Nc3 {[%emt 0:01:43]} d5 {[%emt 0:02:08]} 10. cxd5 {[%emt 0:03:18]} exd5 {[%emt 0:00:07]} 11. Rc1 {[%emt 0:04:38]} Nd7 {[%emt 0:07:18]} 12. Nb3 {[%emt 0:14:48]} Nf6 {[%emt 0:28:14]} 13. Bd4 {[%emt 0:08:12]} dxe4 {[%emt 0:14:26]} 14. Nxe4 {[%emt 0:00:18]} Nf5 {[%emt 0:00:22]} 15. Bc3 {[%emt 0:06:40]} Re8 {[%emt 0:05:47]} 16. Qf3 {[%emt 0:06:07]} Nxe4 {[%emt 0:03:37]} 17. Bxe4 {[%emt 0:00:27]} Nh4 {[%emt 0:00:22]} 18. Qd3 {[%emt 0:02:52]} Qxd3 {[%emt 0:05:54]} 19. Bxd3 {[%emt 0:00:02]} Be6 {[%emt 0:00:26]} 20. Bxg7 {[%emt 0:03:39]} Kxg7 {[%emt 0:00:21]} 21. f3 {[%emt 0:02:27]} Rad8 {[%emt 0:12:05]} 22. Rfd1 {[%emt 0:02:15]} Rd6 {[%emt 0:03:55]} 23. Be4 {[%emt 0:02:06]} Rb6 {[%emt 0:00:06]} 24. Rc7 {[%emt 0:01:41]} Rb8 {[%emt 0:04:08]} 25. Nc5 {[%emt 0:00:01]} Bxa2 {[%emt 0:00:50]} 26. g3 {[%emt 0:01:44]} Nf5 {[%emt 0:00:23]} 27. Bxf5 {[%emt 0:00:37]} gxf5 {[%emt 0:00:05]} 28. Rdd7 {[%emt 0:00:45]} Rxb2 {[%emt 0:00:25]} 29. Nxb7 {[%emt 0:00:25]} Be6 {[%emt 0:04:20]} 30. Re7 {[%emt 0:00:25]} Bd5 {[%emt 0:00:05]} 31. Nd6 {[%emt 0:00:25]} Rd2 {[%emt 0:00:58]} 32. Nxf5+ {[%emt 0:00:37]} Kf6 {[%emt 0:00:12]} 33. Ne3 {[%emt 0:00:37]} Rb1+ {[%emt 0:00:06]} 34. Nf1 {[%emt 0:00:01]} Rdd1 {[%emt 0:00:12]} 0-1

[Event "Reykjavik Open 2025"]
[Site "Reykjavik"]
[Date "2025.04.09"]
[Round "1.17"]
[White "Kadric, Denis"]
[Black "Hulshof, Peter"]
[Result "1-0"]
[Annotator "ChessBase"]
[ECO "B12"]
[WhiteElo "2533"]
[BlackElo "2123"]
[PlyCount "77"]
[EventDate "2025.04.09"]
[EventType "swiss"]
[EventCountry "ISL"]
[SourceTitle "playchess.com"]
[Source "ChessBase"]
[SourceQuality "1"]
[TimeControl "40/5400+30:1800+30"]

1. e4 {[%emt 0:00:03]} c6 {[%emt 0:00:07]} 2. d4 {[%emt 0:00:10]} d5 {[%emt 0:00:11]} 3. e5 {[%emt 0:00:17]} Bf5 {[%emt 0:00:12]} 4. h4 {[%emt 0:03:16]} h5 {[%emt 0:01:51]} 5. c4 {[%emt 0:00:17]} e6 {[%emt 0:00:42]} 6. Nc3 {[%emt 0:00:03]} Bb4 {[%emt 0:00:55]} 7. Qb3 {[%emt 0:03:46]} a5 {[%emt 0:01:40]} 8. a3 {[%emt 0:02:48]} dxc4 {[%emt 0:03:07]} 9. Bxc4 {[%emt 0:00:19]} Bxc3+ {[%emt 0:00:24]} 10. bxc3 {[%emt 0:00:17]} b5 {[%emt 0:01:03]} 11. Be2 {[%emt 0:00:05]} a4 {[%emt 0:02:18]} 12. Qd1 {[%emt 0:00:04]} Qd5 {[%emt 0:15:31]} 13. Nf3 {[%emt 0:00:43]} Bg4 {[%emt 0:10:18]} 14. O-O {[%emt 0:08:32]} Nd7 {[%emt 0:03:48]} 15. Bg5 {[%emt 0:09:25]} Nb6 {[%emt 0:01:52]} 16. Nd2 {[%emt 0:00:24]} Bxe2 {[%emt 0:01:51]} 17. Qxe2 {[%emt 0:00:02]} Ne7 {[%emt 0:03:14]} 18. Bxe7 {[%emt 0:03:07]} Kxe7 {[%emt 0:03:19]} 19. Rfd1 {[%emt 0:08:07]} f5 {[%emt 0:07:00]} 20. Rab1 {[%emt 0:00:00]} Qa2 {[%emt 0:01:56]} 21. Qd3 {[%emt 0:01:22]} Rad8 {[%emt 0:07:30]} 22. Ra1 {[%emt 0:00:13]} Qd5 {[%emt 0:00:12]} 23. Qg3 {[%emt 0:00:01]} Kf7 {[%emt 0:01:51]} 24. Nf3 {[%emt 0:00:03]} Qb3 {[%emt 0:03:35]} 25. Ng5+ {[%emt 0:01:32]} Ke7 {[%emt 0:02:31]} 26. Ne4 {[%emt 0:01:09]} Kf7 {[%emt 0:05:01]} 27. Nc5 {[%emt 0:02:56]} Qd5 {[%emt 0:01:20]} 28. Nd3 {[%emt 0:01:26]} g5 {[%emt 0:02:30]} 29. Qxg5 {[%emt 0:16:07]} Rdg8 {[%emt 0:01:19]} 30. Qf6+ {[%emt 0:00:03]} Ke8 {[%emt 0:00:08]} 31. Nf4 {[%emt 0:00:02]} Qe4 {[%emt 0:02:16]} 32. Qxe6+ {[%emt 0:00:39]} Kd8 {[%emt 0:00:14]} 33. d5 {[%emt 0:01:25]} Qxf4 {[%emt 0:05:18]} 34. dxc6+ {[%emt 0:00:09]} Kc7 {[%emt 0:00:17]} 35. Qe7+ {[%emt 0:00:08]} Nd7 {[%emt 0:00:10]} 36. Qxd7+ {[%emt 0:00:40]} Kb6 {[%emt 0:00:05]} 37. Qb7+ {[%emt 0:00:02]} Kc5 {[%emt 0:00:10]} 38. Qa7+ {[%emt 0:00:03]} Kxc6 {[%emt 0:00:15]} 39. Rd6# {[%emt 0:00:03]} 1-0